Cogmind - Beta 15 @@@ ROGUE MODE // 2025.07.13 @ 23:53:16 Player: Windjigo Result: Destroyed by A-27 Freighter with PD Laser Performance ------------- Evolutions (4) 2000 Regions Visited (8) 1600 Robots Destroyed (154) 770 Value Destroyed (4935) 4935 Prototype IDs (9) 180 Alien Tech Used (0) 0 Bonus (581) 581 TOTAL SCORE: 10066 Bonus ------- High Alert Combat Kills 359 Follower Combat Kills 489 Friendly Fire -267 Cogmind --------- Core Integrity 0/850 Matter 98/300 Energy 98/100 System Corruption 3% Temperature Cool (12) Movement Core (50) Location -6/Factory Parts ------- > --- POWER (1) -------- (None) > --- PROPULSION (3) --- (None) > --- UTILITY (8) ------ Improved Sensor Array Improved Signal Interpreter Improved Signal Interpreter > --- WEAPON (3) ------- (None) > --- INVENTORY (5) ---- Layered Medium Armor Plating Scrap Shield Remote Datajack Peak State ------------ > --- POWER ------------ Heavy Deuterium Engine > --- PROPULSION ------- Advanced Treads Medium Treads Medium Treads > --- UTILITY ---------- Large Storage Unit Improved Sensor Array Improved Signal Interpreter Experimental Targeting Computer Kinecellerator Weapon Cycler Layered Medium Armor Plating Hacking Suite > --- WEAPON ----------- Advanced Assault Cannon Advanced Assault Cannon Gauss Cannon > --- INVENTORY -------- Heavy Deuterium Engine Improved Treads Medium Treads Improved Cooling System Improved Sensor Array Improved Signal Interpreter Kinecellerator Scrap Shield Improved Field Recycling Unit Phase Cannon Advanced Assault Cannon Advanced Assault Cannon Mini Grenade Launcher Remote Datajack [Rating: 62] Favorites ----------- Power Cooled Ion Engine Engine Cooled Ion Engine Power Core Nuclear Core Propulsion Light Treads Treads Light Treads Wheel Wheel Utility Hacking Suite Device Improved Sensor Array Storage Large Storage Unit Processor Improved Signal Interpreter Hackware Hacking Suite Protection Hardened Medium Armor Plating Weapon Gauss Rifle Energy Gun Heavy Laser Energy Cannon Phase Cannon Ballistic Gun Gauss Rifle Ballistic Cannon Advanced Assault Cannon Launcher Mini Grenade Launcher Special Weapon Mining Laser Build | -11 -10 -10 -8 -7 -7 -7 -7 -6 ------- Run | Yrd Mat Sub Mat Fac Was Fac Sto Fac Slots Evolved 8 | . . . 4 2 . . . 2 Power . | . . . . . . . . . Propulsion 1 | . . . 1 . . . . . Utility 6 | . . . 2 2 . . . 2 Weapon 1 | . . . 1 . . . . . Parts Attached 112 | 9 13 4 29 30 1 1 12 13 Power 11 | 1 1 . 4 1 . . 3 1 Engine 9 | 1 1 . 3 1 . . 2 1 Core 2 | . . . 1 . . . 1 . Reactor . | . . . . . . . . . Propulsion 28 | 4 3 . 7 9 . 1 2 2 Treads 25 | 1 3 . 7 9 . 1 2 2 Leg . | . . . . . . . . . Wheel 3 | 3 . . . . . . . . Hover . | . . . . . . . . . Flight . | . . . . . . . . . Utility 33 | 2 3 1 6 12 . . 3 6 Device 16 | 1 1 1 1 6 . . 2 4 Storage 3 | 1 1 . . 1 . . . . Processor 6 | . . . 1 3 . . 1 1 Hackware 2 | . . . 1 1 . . . . Protection 6 | . 1 . 3 1 . . . 1 Artifact . | . . . . . . . . . Weapon 40 | 2 6 3 12 8 1 . 4 4 Energy Gun 4 | 1 1 . 2 . . . . . Energy Cannon 2 | . . . . . 1 . . 1 Ballistic Gun 23 | 1 3 2 9 7 . . 1 . Ballistic Cannon 7 | . . 1 1 . . . 2 3 Launcher 2 | . 1 . . 1 . . . . Special Weapon 2 | . 1 . . . . . 1 . Impact Weapon . | . . . . . . . . . Slashing Weapon . | . . . . . . . . . Piercing Weapon . | . . . . . . . . . Special Melee Weapon . | . . . . . . . . . Unidentified Prototypes 9 | . . . 2 2 1 . 4 . Corrupted Parts 2 | . . . . . . . 2 . System Corruption 14 | . . . . . . . 14 . Parts Lost 37 | . . 3 7 4 . . 2 21 Power 4 | . . 1 1 . . . . 2 Propulsion 7 | . . . 2 . . . . 5 Utility 15 | . . 1 2 3 . . 1 8 Weapon 11 | . . 1 2 1 . . 1 6 Highest Loss Streak 19 | . . 3 3 2 . . 1 19 To Critical Strikes . | . . . . . . . . . Average Backups 11 | 3 9 9 8 12 14 14 13 12 Power . | . . . . 1 1 1 1 . Propulsion 1 | 2 3 2 . 1 2 2 1 1 Utility 3 | . . 1 2 3 5 5 5 5 Weapon 4 | 1 3 3 3 4 5 5 4 4 Tool/Special . | . . . . . . . . . Unused Backups 17 | . 1 2 6 4 . . 1 3 Power 3 | . . 1 1 . . . 1 . Propulsion 3 | . . . 1 2 . . . . Utility 6 | . . 1 3 . . . . 2 Weapon 3 | . 1 . 1 . . . . 1 Tool/Special 2 | . . . . 2 . . . . Average Slot Usage (%) 97 | . 98 99 95 99 99 100 99 93 Engine 8 | . 14 13 7 7 7 7 7 5 Treads 23 | . 22 28 26 23 23 23 23 18 Device 13 | . 12 11 8 14 15 15 14 20 Storage 8 | . 14 14 8 7 7 7 7 5 Processor 7 | . . . . 9 15 15 15 12 Hackware 5 | . . . 8 7 7 7 7 5 Protection 3 | . 1 2 5 5 . . . 4 Energy Gun 1 | . 2 . 3 . . . . . Ballistic Gun 18 | . 25 20 16 22 14 23 18 . Ballistic Cannon 4 | . . 7 6 . . . 3 17 Peak Build Rating 62 | 7 8 10 29 46 47 46 50 62 Average Rating 31 | 5 7 9 22 37 43 45 47 54 On Entrance 26 | . 7 8 10 29 46 44 46 48 Naked Turns . | . . . . . . . . . Heaviest Build 68 | 14 22 22 40 60 42 45 53 68 Greatest Support 84 | 26 40 40 60 73 73 73 73 84 Greatest Overweight (x) 1 | . . . 1 . . . . 1 Average Overweight (x) . | . . . . . . . . . Largest Inventory Capacity 15 | 8 10 10 10 15 15 15 15 15 Average Capacity 12 | 6 9 10 9 13 15 15 15 14 Most Carried 15 | 5 10 10 10 15 15 15 15 15 Average Carried 12 | 3 9 9 9 13 15 15 14 13 Final Capacity 15 | 8 10 10 10 15 15 15 15 5 Final Carried 15 | 5 10 10 10 15 15 15 15 4 Class Distribution -------------------- 21% | Mutant 18% | Skirmisher 16% | Scavenger-Tank 15% | Commander-Gunner 9% | Gunner 6% | Scavenger-Mutant 5% | Tank 4% | Scavenger-Skirmisher Dominant Class ---------------- Mutant | -10/Materials Mutant | -10/Subcaves Scavenger-Tank | -8/Materials Skirmisher | -7/Factory Skirmisher | -7/Waste Skirmisher | -7/Factory Gunner | -7/Storage Commander-Gunner | -6/Factory Resources | -11 -10 -10 -8 -7 -7 -7 -7 -6 ----------- Run | Yrd Mat Sub Mat Fac Was Fac Sto Fac Matter Collected 4736 | 312 369 316 1251 1032 . 69 861 526 Remotely . | . . . . . . . . . Salvage Created 5618 | 110 605 154 1421 1512 . 115 815 886 Parts 331 | 10 41 9 90 77 . 10 42 52 Haulers Intercepted 22 | . 2 . 5 4 . 2 6 3 Recyclers Shooed 2 | 1 1 . . . . . . . Parts Field Recycled 47 | . . . . 25 . . . 22 Retrieved Matter 544 | . . . . 291 . . . 253 Parts Self-Destructed . | . . . . . . . . . Prevented . | . . . . . . . . . Kills | -11 -10 -10 -8 -7 -7 -7 -7 -6 ------- Run | Yrd Mat Sub Mat Fac Was Fac Sto Fac Combat Hostiles Destroyed 97 | . 14 3 33 25 . . 7 15 Guns 63 | . 14 3 18 22 . . 5 1 Cannons 19 | . . . 8 . . . 2 9 AOE 15 | . . . 7 3 . . . 5 Classes Destroyed 15 | 2 5 1 4 2 . . . 1 Worker 8 | . . . 2 2 . . . 4 Builder 7 | . . . 2 2 . 1 1 1 Tunneler 4 | 2 . . 1 1 . . . . Hauler 22 | . 2 . 5 4 . 2 6 3 Recycler 7 | 1 . . . 4 . . 2 . Operator 5 | . 3 . . . . . . 2 Watcher 4 | . 1 . . 2 . . . 1 Swarmer 20 | . 6 . 7 3 . . . 4 Grunt 38 | . 8 . 17 10 . . . 3 Duelist 1 | . . . 1 . . . . . Sentry 18 | . . . 8 6 . . 3 1 Hunter 8 | . . . . 2 . . 2 4 Programmer 8 | . . . . 4 . . 2 2 Behemoth 1 | . . . . . . . . 1 Subdweller 3 | . . 3 . . . . . . Best Kill Streak 9 | 2 5 1 5 9 . 2 3 4 Combat Bots Only 5 | . 5 1 5 4 . . 1 2 Max Kills in Single Turn 4 | 1 2 1 4 4 . 2 2 3 Gunslinging 1 | . 1 . . . . . . . Exploded 3 | . . . 3 2 . . . 2 Melee . | . . . . . . . . . Uniques/NPCs Destroyed . | . . . . . . . . . Combat | -11 -10 -10 -8 -7 -7 -7 -7 -6 -------- Run | Yrd Mat Sub Mat Fac Was Fac Sto Fac Hostile Shots Fired 992 | . 57 38 117 293 . . 131 356 Missed 345 | . 11 11 35 104 . . 50 134 Hits 647 | . 46 27 82 189 . . 81 222 Melee 3 | . . . 3 . . . . . Projectile 644 | . 46 27 79 189 . . 81 222 AOE 1 | . . . . . . . 1 . Critical Strikes 15 | . 3 1 4 3 . . . 4 Part Disruptions 11 | . . . . . . . . 11 Damage Taken 8815 | . 565 615 1382 1818 . . 973 3462 Core 1491 | . 45 147 182 180 . . 77 860 Absorbed by Shields 651 | . . . 184 335 . . 132 . Regen/Repaired (Parts) 780 | . 55 . 329 28 . . 201 167 Core Remaining (%) 63 | 100 . 23 66 . . . 63 . Volleys Fired 364 | 14 67 30 89 68 2 4 48 42 Largest 3 | 2 2 2 3 3 3 3 3 3 Hottest 165 | 60 100 45 129 84 86 84 96 165 Shots Fired 900 | 28 130 52 234 195 6 10 125 120 Gun 669 | 28 127 43 156 193 4 10 105 3 Cannon 208 | . . 9 75 . . . 11 113 Launcher 17 | . 1 . 3 2 2 . 5 4 Special 6 | . 2 . . . . . 4 . Kinetic 808 | 14 102 52 208 193 4 10 116 109 Thermal 71 | 14 27 . 23 . . . . 7 Explosive 17 | . 1 . 3 2 2 . 5 4 Electromagnetic . | . . . . . . . . . Robot Hit Streak 24 | 2 11 17 24 18 4 4 17 15 Robot Miss Streak 6 | 3 4 2 3 6 2 2 2 3 Penetration Max 1 | . . . . 1 . 1 1 1 Secondary Targets 7 | . 2 . 1 4 . . . . Max Gunslinging Chain 1 | . 1 . 1 1 . . . . Shots Hit Robots 606 | 14 76 37 168 147 4 6 77 77 Core Hits 360 | 4 34 6 77 148 1 3 35 52 Critical Kills 2 | . . 1 . 1 . . . . Critical Parts Destroyed 4 | . . . 1 . . . 3 . Critical Strikes 18 | . 3 1 1 1 . . 4 8 Burn 3 | . 3 . . . . . . . Destroy 6 | . . 1 1 1 . . 3 . Blast 9 | . . . . . . . 1 8 Melee Attacks . | . . . . . . . . . Impact . | . . . . . . . . . Slashing . | . . . . . . . . . Piercing . | . . . . . . . . . Sneak Attacks . | . . . . . . . . . Combat Hostiles . | . . . . . . . . . Follow-up Attacks . | . . . . . . . . . Damage Inflicted 15081 | 163 1012 370 3918 3510 282 142 2130 3554 Guns 8470 | 163 972 370 1981 2974 55 142 1707 106 Cannons 3478 | . . . 1095 . . . 139 2244 Explosions 3133 | . 40 . 842 536 227 . 284 1204 Melee . | . . . . . . . . . Ramming . | . . . . . . . . . Kinetic 11208 | 121 734 370 2735 2974 55 142 1846 2231 Thermal 957 | 42 238 . 341 217 . . . 119 Explosive 2916 | . 40 . 842 319 227 . 284 1204 Electromagnetic . | . . . . . . . . . Impact . | . . . . . . . . . Slashing . | . . . . . . . . . Piercing . | . . . . . . . . . Highest Corruption 19 | . 1 1 . 1 1 1 19 3 Average Corruption 2 | . 1 1 . 1 1 1 6 2 Corruption Purged . | . . . . . . . . . Corruption Blocked . | . . . . . . . . . Effects 75 | . 11 7 . 10 3 4 37 3 Message Errors 22 | . 5 1 . 2 1 1 12 . Matter Fused 18 | . 2 2 . 2 2 1 8 1 Heat Flow Errors 12 | . 1 . . 5 . 2 3 1 Energy Discharges 10 | . . 1 . . . . 9 . Data Loss (minor) 7 | . 1 1 . . . . 4 1 Data Loss (major) 1 | . . . . 1 . . . . Misfires 3 | . 1 1 . . . . 1 . Alerts 2 | . 1 1 . . . . . . Overload Shots . | . . . . . . . . . Overflow Damage 346 | . . . 171 11 . . 2 162 Projectiles 35 | . . . 20 . . . . 15 Explosions 311 | . . . 151 11 . . 2 147 Melee . | . . . . . . . . . Knockbacks 31 | . . . 15 . . . . 16 Impact . | . . . . . . . . . Kinetic 27 | . . . 12 . . . . 15 Secondary 4 | . . . 3 . . . . 1 Self-Inflicted Damage 809 | . . . 325 268 . . 198 18 Shots 15 | . . . 4 5 . . 5 1 Rammed . | . . . . . . . . . Targets Rammed . | . . . . . . . . . Kicked . | . . . . . . . . . Crushed . | . . . . . . . . . Highest Temperature 536 | . 198 261 333 536 . 245 212 484 Average Temperature 74 | . 59 145 71 82 . 98 27 106 Received Heat Transfer 1761 | . 264 393 459 390 . . 132 123 Effects 7 | . . . 1 5 . . . 1 Shutdowns 2 | . . . . 2 . . . . Interference 4 | . . . 1 2 . . . 1 Damage (minor) 1 | . . . . 1 . . . . Siege Activations . | . . . . . . . . . Martial Activations . | . . . . . . . . . Shielding Activations . | . . . . . . . . . Robots Disrupted . | . . . . . . . . . Combat Hostiles . | . . . . . . . . . Robots Corrupted . | . . . . . . . . . Combat Hostiles . | . . . . . . . . . Parts Fried . | . . . . . . . . . Impact Corruptions . | . . . . . . . . . Robots Melted . | . . . . . . . . . Combat Hostiles . | . . . . . . . . . Parts Melted 2 | . . 1 1 . . . . . Heat Transferred 1977 | 100 913 . 666 150 . . . 148 Parts Sabotaged . | . . . . . . . . . Parts Stolen . | . . . . . . . . . Parts Stripped . | . . . . . . . . . Power Chain Reactions . | . . . . . . . . . Alert | -11 -10 -10 -8 -7 -7 -7 -7 -6 ------- Run | Yrd Mat Sub Mat Fac Was Fac Sto Fac Maximum Alert Level 3 | . . . 2 2 . . 1 3 Low Security (%) 64 | 100 100 . 33 50 100 100 81 41 Level 1 23 | . . . 48 34 . . 18 20 Level 2 9 | . . . 17 15 . . . 18 Level 3 2 | . . . . . . . . 19 Level 4 . | . . . . . . . . . Level 5 . | . . . . . . . . . High Security . | . . . . . . . . . Max Security . | . . . . . . . . . Peak Influence 911 | 10 144 . 461 467 119 21 267 911 Initial 134 | . 3 . . 134 119 16 . 110 Average 179 | 1 57 . 265 220 72 3 70 371 Influence Increases 4958 | 15 492 . 1196 987 14 64 697 1493 Destroy 0b10 Robot/C 2180 | . 280 . 660 500 . . 200 540 Destroy 0b10 Robot/NC 295 | 15 30 . 50 75 . 15 45 65 Destroy Leader 612 | . 76 . 160 152 . 4 102 118 Allied During Kill 309 | . . . . . . . 79 230 Successful Hack 240 | . 28 . 26 16 . 29 66 75 Select Force Hacks 180 | . 30 . 60 30 . . 30 30 Disable Machine 630 | . 45 . 105 120 . 15 120 225 Destroy Structure 347 | . 3 . 75 49 14 1 40 165 Lose Combat Pursuer 165 | . . . 60 45 . . 15 45 Influence Decreases 4219 | 10 482 15 900 942 332 87 453 998 Entered New Map 535 | . 2 8 . 162 222 7 . 134 Time Decay 2694 | 10 480 7 530 590 90 80 413 494 Lost Part 340 | . . . 70 40 . . 20 210 Lost Ally 200 | . . . . . 20 . 20 160 Purge Threat 450 | . . . 300 150 . . . . Squads Dispatched 28 | . 3 . 3 6 . 2 4 10 Investigation 7 | . 1 . 3 1 . . 1 1 Extermination 9 | . . . . 3 . 1 2 3 Reinforcement 12 | . 2 . . 2 . 1 1 6 Assault . | . . . . . . . . . Garrison . | . . . . . . . . . Intercept . | . . . . . . . . . Searches Triggered . | . . . . . . . . . Construction Impeded 4 | . . . . . . . 1 3 Haulers Reinforced 3 | . . . . 1 . 1 . 1 Active Scanning Responses . | . . . . . . . . . Cargo Convoy Interrupts 1 | . . . . . . . . 1 Stealth | -11 -10 -10 -8 -7 -7 -7 -7 -6 --------- Run | Yrd Mat Sub Mat Fac Was Fac Sto Fac Distress Signals 12 | . 1 . 4 2 . . 2 3 Communications Jammed . | . . . . . . . . . Distress Signals . | . . . . . . . . . Times Spotted 182 | . 24 3 48 40 4 1 16 46 Peak Tracking Total 11 | . 5 2 7 6 4 1 3 11 Tactical Retreats 11 | . . . 4 2 1 . 1 3 Traps | -11 -10 -10 -8 -7 -7 -7 -7 -6 ------- Run | Yrd Mat Sub Mat Fac Was Fac Sto Fac Traps Triggered 9 | . 2 . 2 1 . 1 2 1 Indirectly . | . . . . . . . . . Trap Hack Attempts . | . . . . . . . . . Triggered . | . . . . . . . . . Disarmed . | . . . . . . . . . Reprogrammed . | . . . . . . . . . Reused . | . . . . . . . . . Traps Extracted . | . . . . . . . . . Installed . | . . . . . . . . . Triggered . | . . . . . . . . . Machines | -11 -10 -10 -8 -7 -7 -7 -7 -6 ---------- Run | Yrd Mat Sub Mat Fac Was Fac Sto Fac Machines Disabled 42 | . 3 . 7 8 . 1 8 15 Max in Single Turn 4 | . 1 . 3 4 . 1 2 4 Garrison Access 2 | . . . . 1 . . 1 . Machines Repaired . | . . . . . . . . . Machines Dismantled . | . . . . . . . . . Machines Sabotaged . | . . . . . . . . . Overloaded Fab Kills . | . . . . . . . . . Hacking | -11 -10 -10 -8 -7 -7 -7 -7 -6 --------- Run | Yrd Mat Sub Mat Fac Was Fac Sto Fac Machines Accessed 41 | . 6 . 8 6 . 3 12 6 Terminals 27 | . 4 . 5 2 . 3 9 4 Fabricators . | . . . . . . . . . Repair Stations 6 | . 1 . 1 2 . . 1 1 Recycling Units 6 | . 1 . 2 1 . . 1 1 Scanalyzers . | . . . . . . . . . Garrison Access 2 | . . . . 1 . . 1 . Total Hacks 118 | . 15 . 31 13 . 9 35 15 Successful 68 | . 7 . 21 6 . 6 21 7 Failed 50 | . 8 . 10 7 . 3 14 8 Catastrophic 11 | . 3 . 2 3 . 1 1 1 Database Lockouts . | . . . . . . . . . Manual 59 | . 10 . 21 3 . 5 16 4 Terminals 77 | . 8 . 22 5 . 9 26 7 Fabricators . | . . . . . . . . . Repair Stations 22 | . 3 . 6 3 . . 4 6 Recycling Units 15 | . 4 . 3 2 . . 4 2 Scanalyzers . | . . . . . . . . . Garrison Access 4 | . . . . 3 . . 1 . Terminal Hacks 24 | . 1 . 7 2 . 4 8 2 Robot Schematic 1 | . . . . . . . 1 . Robot Analysis 8 | . 1 . 2 1 . . 2 2 Open Door 1 | . . . . . . . 1 . Branch Access Points 2 | . . . 1 . . 1 . . Emergency Access Points 1 | . . . . . . 1 . . Alert Level 2 | . . . 1 . . 1 . . Unreport Threat 4 | . . . 2 1 . . 1 . Zone Layout 5 | . . . 1 . . 1 3 . Fabricator Hacks . | . . . . . . . . . Repair Station Hacks 15 | . 2 . 6 2 . . 2 3 Scan Component 8 | . 1 . 3 1 . . 1 2 Repair 7 | . 1 . 3 1 . . 1 1 Recycling Unit Hacks 3 | . 1 . 1 . . . 1 . Retrieve Components 3 | . 1 . 1 . . . 1 . Scanalyzer . | . . . . . . . . . Garrison Access Hacks 2 | . . . . 1 . . 1 . Seal Access 2 | . . . . 1 . . 1 . Unauthorized Hacks 23 | . 2 . 7 1 . 2 9 2 Terminals 17 | . 1 . 5 . . 2 8 1 Botnet 17 | . 1 . 5 . . 2 8 1 Fabricators . | . . . . . . . . . Repair Stations . | . . . . . . . . . Recycling Units 6 | . 1 . 2 1 . . 1 1 Tunnel 6 | . 1 . 2 1 . . 1 1 Scanalyzers . | . . . . . . . . . Garrison Access . | . . . . . . . . . Data Cores Recovered 4 | . 1 . . . . . 1 2 Used 1 | . . . . . . . . 1 Hacking Detections 34 | . 5 . 7 5 . 2 10 5 Full Trace Events 1 | . . . 1 . . . . . Feedback Events . | . . . . . . . . . Feedback Blocked . | . . . . . . . . . Robot Schematics Acquired 1 | . . . . . . . 1 . Robots Built . | . . . . . . . . . Authchips . | . . . . . . . . . Time . | . . . . . . . . . Total Robot Build Rating . | . . . . . . . . . Part Schematics Acquired . | . . . . . . . . . Parts Built . | . . . . . . . . . Authchips . | . . . . . . . . . Time . | . . . . . . . . . Total Part Build Rating . | . . . . . . . . . Parts Repaired 7 | . 1 . 3 1 . . 1 1 Time 176 | . 13 . 90 32 . . 19 22 Parts Recycled . | . . . . . . . . . Recycled Matter . | . . . . . . . . . Retrieved Matter . | . . . . . . . . . Retrieved Components 15 | . . . 5 . . . 10 . Parts Scanalyzed . | . . . . . . . . . Part Schematics Acquired . | . . . . . . . . . Parts Damaged . | . . . . . . . . . Bothacking | -11 -10 -10 -8 -7 -7 -7 -7 -6 ------------ Run | Yrd Mat Sub Mat Fac Was Fac Sto Fac Used RIF Installer . | . . . . . . . . . Robots Hacked . | . . . . . . . . . Non-combat . | . . . . . . . . . Combat . | . . . . . . . . . Robot Hacks Applied . | . . . . . . . . . Relay Couplers Released . | . . . . . . . . . Fabnet Peak Effective % . | . . . . . . . . . Robots Rewired 1 | . . . . . . . . 1 Allies Hacked . | . . . . . . . . . Hacks Repelled . | . . . . . . . . . Allies | -11 -10 -10 -8 -7 -7 -7 -7 -6 -------- Run | Yrd Mat Sub Mat Fac Was Fac Sto Fac Total Allies 12 | . . . . . 1 . 10 1 Largest Group 10 | . . . . . 1 . 10 7 Highest-Rated Group 173 | . . . . . 31 . 173 143 Highest-Rated Ally 34 | . . . . . 31 . 29 34 Total Orders . | . . . . . . . . . Ally Attacks 94 | . . . . . 5 . 29 60 Total Damage 1970 | . . . . . 104 . 372 1494 Kills 18 | . . . . . . . 4 14 Allies Corrupted . | . . . . . . . . . Allies Melted . | . . . . . . . . . Intel | -11 -10 -10 -8 -7 -7 -7 -7 -6 ------- Run | Yrd Mat Sub Mat Fac Was Fac Sto Fac Active Infowar (turns) 8617 | 61 1437 706 914 1980 185 453 1597 1284 Sensors 7119 | . . 706 914 1980 185 453 1597 1284 Seismic 1498 | 61 1437 . . . . . . . Robot Analysis Total 8 | . 1 . 2 1 . . 2 2 Derelict Logs Recovered . | . . . . . . . . . Drone Launches . | . . . . . . . . . Drone Recoveries . | . . . . . . . . . Exploration | -11 -10 -10 -8 -7 -7 -7 -7 -6 ------------- Run | Yrd Mat Sub Mat Fac Was Fac Sto Fac Turns Passed 10040 | 116 1620 833 1796 2121 185 453 1597 1319 Spaces Moved 4976 | 72 710 458 750 1039 112 269 781 785 Core 141 | 21 . . . . . . . 120 Treads 4613 | . 539 458 750 1039 112 269 781 665 Legs . | . . . . . . . . . Wheels 222 | 51 171 . . . . . . . Hover . | . . . . . . . . . Flight . | . . . . . . . . . Fastest Speed 50 | 50 80 160 160 155 155 155 155 50 Average Speed 151 | 74 140 160 160 159 155 155 155 140 Slowest Speed 240 | 90 160 160 240 160 155 155 155 240 Overloaded Moves . | . . . . . . . . . Propulsion Burnouts . | . . . . . . . . . Robots Hopped . | . . . . . . . . . Potential Cave-ins 1 | . . . . . . . 1 . Cave-ins Triggered . | . . . . . . . . . Exploration Rate (%) 45 | 4 95 23 58 30 75 9 94 21 Regions Visited 8 Branch Regions 2 Pre-discovered Areas 7 | . 1 . 2 1 . . 2 1 Known Exits Taken 2 | . . . . . . 1 1 . Unknown Exits Taken 4 | 1 1 1 1 . . . . . Scrap Searched 3 | . . 3 . . . . . . Spaces Dug 21 | . . 1 . . . . 20 . Terrain Destroyed 338 | . 3 1 71 53 19 . 63 128 Melee . | . . . . . . . . . Projectile 37 | . . 1 7 . . . 5 24 AOE 301 | . 3 . 64 53 19 . 58 104 Terrain Rammed . | . . . . . . . . . Walls Destroyed . | . . . . . . . . . Machines Disabled . | . . . . . . . . . Actions | -11 -10 -10 -8 -7 -7 -7 -7 -6 --------- Run | Yrd Mat Sub Mat Fac Was Fac Sto Fac Total 6766 | 104 1199 510 1163 1374 118 297 1072 929 Wait 1077 | . 383 7 236 180 . 21 205 45 Move 4969 | 71 709 457 749 1039 111 268 780 785 Hop . | . . . . . . . . . Pick Up 89 | 10 12 6 22 23 . . 7 9 Fast Attach 36 | 2 1 1 16 4 2 1 8 1 Attach 45 | 5 2 3 10 7 . . 3 15 Detach 1 | . . . . 1 . . . . Swap 82 | 2 13 1 15 27 1 2 8 13 Drop 95 | . 12 5 26 25 2 1 13 11 Fire 364 | 14 67 30 89 68 2 4 48 42 Melee . | . . . . . . . . . Ram . | . . . . . . . . . Kick . | . . . . . . . . . Crush . | . . . . . . . . . Escape Stasis . | . . . . . . . . . Rewire 8 | . . . . . . . . 8 Trap . | . . . . . . . . . Miscellaneous . | . . . . . . . . . Route ------- -11/Scrapyard -10/Materials (discovered 6 exits: [*Mat x3] / [*Min x2] / [*Sub]) -10/Subcaves -8/Materials -7/Factory -7/Waste -7/Factory (discovered 3 exits: *Sto / Low x2) -7/Storage -6/Factory History --------- Turn | Location | Event 11 | -11/Scrapyard | Discovered new exit (range 16) 117 | -11/Scrapyard | Entered Materials 117 | -10/Materials | Discovered new exit (range 7) 263 | -10/Materials | Discovered new exit (range 5) 310 | -10/Materials | Build established: Mutant 509 | -10/Materials | Discovered new exit (range 8) 695 | -10/Materials | Discovered new exit (range 10) 825 | -10/Materials | Build established: Scavenger-Mutant 1340 | -10/Materials | Repaired Ion Engine 1408 | -10/Materials | Build established: Mutant 1566 | -10/Materials | Discovered new exit (range 3) 1727 | -10/Materials | Discovered new exit (range 5) 1737 | -10/Materials | Entered Subcaves 1803 | -10/Subcaves | Discovered new exit (range 14) 1805 | -10/Subcaves | Ambushed by Subdwellers from Twisted Machinery 1881 | -10/Subcaves | Lost 3 parts (1p1u1w) 2060 | -10/Subcaves | Disturbed a concealed Subdweller 2074 | -10/Subcaves | Core integrity fell below 50% 2300 | -10/Subcaves | A swath of the cavern ceiling suddenly collapsed 2570 | -10/Subcaves | Entered Materials 2570 | -8/Materials | Evolved 4 slots: Propulsion x1, Utility x2, Weapon x1 2949 | -8/Materials | Lost 3 parts (2n1u) 3478 | -8/Materials | Build established: Scavenger-Tank 4181 | -8/Materials | Repaired Hrd. Medium Armor Plating 4209 | -8/Materials | Repaired Lgt. Treads 4236 | -8/Materials | Repaired Med. Storage Unit 4335 | -8/Materials | Discovered new exit (range 15) 4366 | -8/Materials | Entered Factory 4366 | -7/Factory | Evolved 2 slots: Utility x2 4651 | -7/Factory | Repaired Shield Generator 5151 | -7/Factory | Build established: Tank 6022 | -7/Factory | Build established: Skirmisher 6189 | -7/Factory | Discovered new exit (range 8) 6207 | -7/Factory | Identified exit to Factory 6487 | -7/Factory | Sucked down chute 6487 | -7/Factory | Entered Waste 6488 | -7/Waste | Met a frightened Derelict 6521 | -7/Waste | Spotted C-40 Crusher 6529 | -7/Waste | Spotted C-40 Crusher 6531 | -7/Waste | Spotted C-40 Crusher 6537 | -7/Waste | Spotted C-40 Crusher 6588 | -7/Waste | Spotted C-40 Crusher 6653 | -7/Waste | Discovered new exit (range 13) 6670 | -7/Waste | Identified exit to Factory 6672 | -7/Waste | Entered Factory 6997 | -7/Factory | Identified exit to Storage 6997 | -7/Factory | Identified exit to Lower Caves 7125 | -7/Factory | Entered Storage 7210 | -7/Storage | Met 01-MTF 7457 | -7/Storage | Discovered exit to Factory (range 16) 7844 | -7/Storage | Learned location of Armory (-4) 7862 | -7/Storage | Build established: Gunner 7989 | -7/Storage | Repaired Hrd. Medium Armor Plating 8106 | -7/Storage | System corruption reached 10% 8150 | -7/Storage | Assisted by bots powering up and referring to "LRC-V3" 8177 | -7/Storage | Found Prototype Processor 8177 | -7/Storage | Identified Exp. Targeting Computer 8459 | -7/Storage | Build established: Commander-Gunner 8466 | -7/Storage | Lost 3 allies 8722 | -7/Storage | Entered Factory 8722 | -6/Factory | Accompanied by 7 allies 8722 | -6/Factory | Evolved 2 slots: Utility x2 9045 | -6/Factory | Repaired Med. Treads 9600 | -6/Factory | Spotted B-75 Beast 9607 | -6/Factory | Destroyed B-75 Beast 9807 | -6/Factory | Lost 5 allies 9895 | -6/Factory | Cargo convoy interrupted 9937 | -6/Factory | Core integrity fell below 50% 9980 | -6/Factory | Core integrity fell below 20% 10008 | -6/Factory | Lost 19 parts (2p4n7u6w) 10041 | -6/Factory | Destroyed by A-27 Freighter with PD Laser Last Messages --------------- 09973_ Dropped Phase Cannon. 09974_ K-01 Serf collects debris. 09975_ Slug penetrates Earth. 09975_ Penetrated by Slug. 09975_ Dropped Imp. Field Recycling Unit. 09976_ Acquired 6 matter. 09977_ Penetrated by Slug. 09977_ Imp. Cooling System destroyed. 09978_ M-28 Smith repairs X-72 Disruptor Imp. Cooling System. 10013_ Acquired Lyr. Medium Armor Plating. 10015_ Connecting with Terminal... 10022_ U-05 Engineer destroyed. 10025_ System corrupted: Component data lost. 10029_ K-01 Serf collects debris. 10030_ A-27 Freighter sends out distress signal. 10036_ Slug penetrates Wall. 10039_ ALERT: Suspicious intruders detected, dispatching Cutter reinforcements to area. 10041_ Weapon Cycler destroyed. Map ----- +----------------------------------------------------+ | ?????????????????????????????????????????????????? | | ?????????????????????????????????????????????????? | | ?????????????????????????????????????????????????? | | ?????????????????????????????????????????????????? | | ?????????????????????????????????????????????????? | | ?????????????????????????????????????????????????? | | ?????????????????????????????????????????????????? | | ?????????????????????????????????????????????????? | | ?????????????????????????????????????????????????? | | ?????????????????????????????????????????????????? | | ?????????????????????????????????????????????????? | | ????????????????????????????????###########??????? | | ????????????????????????????????# #??????? | | ????????????????????????????????# """ #??????? | | ???????????????? ############### "T #??????? | | ????????????????? # """ #??????? | | ???????????????? # """ #??????? | | ???????????????? # """ #??????? | | ??????????????? + """ #??????? | | ???????????????? # ! #??????? | | ??????????????????######### k ###########??????? | | ??????????????????# #=R # ?????????? | | ??????????????????# #H|k # ??????????? | | ??????????????????# #!=m # ????????? | | ??????????????????# * # # """ """ ????? | | ??????????????????# @/ # """ """ ????? | | ??????????????????# # A# """ """ #???? | | ??????????????????# ; # "" "" #???? | | ??????????????????# # # "" "" #???? | | ??????????????????# # # #???? | | ??????????????????# # R# ! #???? | | ??????????????????# x # #???? | | ??????????????????# # m / #???? | | ??????????????????# # ####+############# | | ??????????????????# # #??# #????????# ] | | ??????????????????# # #### ########## ] | | ??????????????????# = # # ] | | ??????????????????# # # | | ??????????????????######### # "" | | ??????????????????????????# / "" | | ??????????????????????????# # "" | | ??????????????????????????##############" # | | ????????????????????????????????????????# #### | | ????????????????????????????????????????# ?? | | ????????????????????????????????????????# ? | | ????????????????????????????????????????# """ """ | | ????????????????????????????????????????+ """ """ | | ????????????????????????????????????????# """ ""? | | ????????????????????????????????????????# ?? | | ????????????????????????????????????????# ?? ? | +----------------------------------------------------+ Best States ------------- Heat Dissipation 48 Energy Generation 18 Energy Capacity 310 Matter Stores 300 Matter Capacity 300 Sight Range 16 Robot Scan Range 15 Terrain Scan Density 10 Armor Coverage 450 Weapon Cycling 15 Evasion (%) 50 Targeting Accuracy 12 Recoil Reduction 3 Kinecelleration 30 Offensive Hacking 10 Item Schematics ----------------- None Robot Schematics ------------------ L-41 Fighter | -7/Storage | Hacked Fabricated ------------ Nothing Repaired ---------- Ion Engine | 8% | -10/Materials Hrd. Medium Armor Plating | 50% | -8/Materials Lgt. Treads | 42% | -8/Materials Med. Storage Unit | 47% | -8/Materials Shield Generator | 6% | -7/Factory Hrd. Medium Armor Plating | 16% | -7/Storage Med. Treads | 9% | -6/Factory Alien Tech Used ----------------- None Achievements -------------- None Challenges ------------ None Game ------ Seed GammaDeepAccelerator Manual? 0 Play Time 01:29:11 Cumulative 100.7 hours Start 2025.07.13 @ 22:21:08 End 2025.07.13 @ 23:53:16 Sessions 1 Manual Loads 0 Difficulty Rogue Special Mode None Game No. 78 Rogue 78 Adventurer 0 Explorer 0 Win Type - Total 0 Types 0/0/0/0/0/0/0/0/0/0 Lore% 59 Gallery% 49 Achievement% 44 Wizard Run 0 Options --------- Layout 1 ASCII 0 Keyboard 0 Movement Mouse Keybinds 0 Fullscreen 1 Font 24/Smallcaps Map View 50x35 Zoom Use 0% Tactical HUD 1 Map Filters NONE Filters NONE Steam 1 RUN: dcacbb5b-6912-422b-a59c-adb582bee72d